[Event "Titled Tuesday Blitz December 06 Early 2022"]
[White "Mgeladze, Tamaz"]
[Black "Dudzinski, Pawel"]
[WhiteFideId "13601202"]
[BlackFideId "1117890"]
[WhiteElo "2288"]
[BlackElo "2099"]
[Result "1-0"]
[Round "02"]
[TimeControl "180+1"]
[Date "2022.12.07"]
[WhiteClock "0:00:21"]
[BlackClock "0:00:07"]

1. c4 {[%clk 0:02:57]}  e5 {[%clk 0:02:59]} 2. g3 {[%clk 0:02:53]}  c5 {[%clk 0:02:59]} 3. Bg2 {[%clk 0:02:52]}  Nc6 {[%clk 0:03:00]} 4. Nc3 {[%clk 0:02:53]}  g6 {[%clk 0:03:01]} 5. Nf3 {[%clk 0:02:52]}  Bg7 {[%clk 0:03:01]} 6. O-O {[%clk 0:02:48]}  Rb8 {[%clk 0:03:02]} 7. d3 {[%clk 0:02:49]}  Nge7 {[%clk 0:03:01]} 8. a3 {[%clk 0:02:48]}  f5 {[%clk 0:03:00]} 9. Rb1 {[%clk 0:02:48]}  a6 {[%clk 0:03:00]} 10. Bg5 {[%clk 0:02:48]}  b5 {[%clk 0:02:57]} 11. Nd5 {[%clk 0:02:41]}  h6 {[%clk 0:02:56]} 12. Bf6 {[%clk 0:02:38]}  O-O {[%clk 0:02:54]} 13. Nxe7+ {[%clk 0:02:26]}  Nxe7 {[%clk 0:02:48]} 14. Bxe5 {[%clk 0:02:25]}  Bxe5 {[%clk 0:02:39]} 15. Nxe5 {[%clk 0:02:26]}  d6 {[%clk 0:02:39]} 16. Nf3 {[%clk 0:02:22]}  b4 {[%clk 0:02:39]} 17. axb4 {[%clk 0:02:22]}  Rxb4 {[%clk 0:02:37]} 18. Qd2 {[%clk 0:02:17]}  Kh7 {[%clk 0:02:36]} 19. b3 {[%clk 0:02:12]}  Qb6 {[%clk 0:02:35]} 20. d4 {[%clk 0:02:11]}  Rxb3 {[%clk 0:02:29]} 21. Rxb3 {[%clk 0:02:09]}  Qxb3 {[%clk 0:02:29]} 22. dxc5 {[%clk 0:02:08]}  dxc5 {[%clk 0:02:30]} 23. Qd6 {[%clk 0:02:07]}  Rf7 {[%clk 0:02:29]} 24. Qxc5 {[%clk 0:02:01]}  Be6 {[%clk 0:02:27]} 25. Ne5 {[%clk 0:01:50]}  Rg7 {[%clk 0:02:27]} 26. h4 {[%clk 0:01:37]}  Qb2 {[%clk 0:02:17]} 27. e3 {[%clk 0:01:35]}  g5 {[%clk 0:02:09]} 28. hxg5 {[%clk 0:01:34]}  hxg5 {[%clk 0:02:10]} 29. Qd6 {[%clk 0:01:34]}  Ng6 {[%clk 0:02:03]} 30. Qxe6 {[%clk 0:01:18]}  Qxe5 {[%clk 0:01:51]} 31. Qxa6 {[%clk 0:01:18]}  f4 {[%clk 0:01:50]} 32. Qb5 {[%clk 0:01:14]}  fxg3 {[%clk 0:01:45]} 33. Qxe5 {[%clk 0:01:11]}  gxf2+ {[%clk 0:01:45]} 34. Rxf2 {[%clk 0:01:11]}  Nxe5 {[%clk 0:01:46]} 35. Be4+ {[%clk 0:01:10]}  Kg8 {[%clk 0:01:42]} 36. Rf5 {[%clk 0:01:10]}  Ng4 {[%clk 0:01:30]} 37. Bd5+ {[%clk 0:01:01]}  Kh7 {[%clk 0:01:30]} 38. e4 {[%clk 0:01:02]}  Ne3 {[%clk 0:01:27]} 39. Rf3 {[%clk 0:00:58]}  Nc2 {[%clk 0:01:23]} 40. c5 {[%clk 0:00:56]}  g4 {[%clk 0:01:23]} 41. Rc3 {[%clk 0:00:54]}  Nd4 {[%clk 0:01:21]} 42. Kg2 {[%clk 0:00:50]}  Rc7 {[%clk 0:01:15]} 43. c6 {[%clk 0:00:49]}  Kg6 {[%clk 0:01:11]} 44. Rc4 {[%clk 0:00:48]}  Nb5 {[%clk 0:01:06]} 45. Rb4 {[%clk 0:00:46]}  Nd6 {[%clk 0:01:01]} 46. Rb7 {[%clk 0:00:46]}  Nxb7 {[%clk 0:00:49]} 47. cxb7 {[%clk 0:00:46]}  Rc2+ {[%clk 0:00:50]} 48. Kg3 {[%clk 0:00:46]}  Rb2 {[%clk 0:00:51]} 49. Kxg4 {[%clk 0:00:46]}  Kf6 {[%clk 0:00:51]} 50. Kf4 {[%clk 0:00:46]}  Rb4 {[%clk 0:00:49]} 51. Ke3 {[%clk 0:00:40]}  Ke5 {[%clk 0:00:50]} 52. Kd3 {[%clk 0:00:41]}  Kd6 {[%clk 0:00:35]} 53. Kc3 {[%clk 0:00:37]}  Rb6 {[%clk 0:00:34]} 54. Kc4 {[%clk 0:00:36]}  Rb1 {[%clk 0:00:34]} 55. Kd4 {[%clk 0:00:33]}  Rb4+ {[%clk 0:00:34]} 56. Kc3 {[%clk 0:00:32]}  Rb1 {[%clk 0:00:32]} 57. Kc2 {[%clk 0:00:32]}  Rb6 {[%clk 0:00:30]} 58. Kd3 {[%clk 0:00:32]}  Rb4 {[%clk 0:00:27]} 59. Ke3 {[%clk 0:00:32]}  Ke5 {[%clk 0:00:25]} 60. Kf3 {[%clk 0:00:32]}  Rb2 {[%clk 0:00:22]} 61. Kg4 {[%clk 0:00:32]}  Rb4 {[%clk 0:00:20]} 62. Kg5 {[%clk 0:00:32]}  Rb6 {[%clk 0:00:21]} 63. Bc6 {[%clk 0:00:29]}  Kd6 {[%clk 0:00:20]} 64. Bd5 {[%clk 0:00:27]}  Ke5 {[%clk 0:00:21]} 65. Kh5 {[%clk 0:00:27]}  Kf6 {[%clk 0:00:20]} 66. Kh6 {[%clk 0:00:25]}  Ke5+ {[%clk 0:00:18]} 67. Kg7 {[%clk 0:00:25]}  Kd6 {[%clk 0:00:19]} 68. Kf7 {[%clk 0:00:25]}  Kd7 {[%clk 0:00:18]} 69. Kf8 {[%clk 0:00:25]}  Rb4 {[%clk 0:00:17]} 70. Kf7 {[%clk 0:00:22]}  Kd6 {[%clk 0:00:17]} 71. Kf6 {[%clk 0:00:21]}  Rb6 {[%clk 0:00:17]} 72. Kf5 {[%clk 0:00:20]}  Rb5 {[%clk 0:00:16]} 73. Kf6 {[%clk 0:00:19]}  Rb6 {[%clk 0:00:16]} 74. Kf7 {[%clk 0:00:19]}  Kd7 {[%clk 0:00:15]} 75. e5 {[%clk 0:00:20]}  Rb5 {[%clk 0:00:10]} 76. e6+ {[%clk 0:00:21]}  Kd6 {[%clk 0:00:10]} 77. e7 {[%clk 0:00:21]}  Rxb7 {[%clk 0:00:07]} 78. Bxb7 {[%clk 0:00:21]} 1-0


[Site "https://www.chess.com"]

[Event "Titled Tuesday Blitz December 06 Early 2022"]
[White "Mihailidis, Anastasios"]
[Black "Concio, Michael Jr."]
[WhiteFideId "4205588"]
[BlackFideId "5217873"]
[WhiteElo "2312"]
[BlackElo "2263"]
[Result "0-1"]
[Round "02"]
[TimeControl "180+1"]
[Date "2022.12.07"]
[WhiteClock "0:00:10"]
[BlackClock "0:00:06"]

1. e4 {[%clk 0:02:55]}  e5 {[%clk 0:02:53]} 2. Nf3 {[%clk 0:02:54]}  Nc6 {[%clk 0:02:53]} 3. d4 {[%clk 0:02:54]}  exd4 {[%clk 0:02:52]} 4. Nxd4 {[%clk 0:02:55]}  Nf6 {[%clk 0:02:52]} 5. Nc3 {[%clk 0:02:54]}  d5 {[%clk 0:02:50]} 6. Nxc6 {[%clk 0:02:50]}  bxc6 {[%clk 0:02:51]} 7. exd5 {[%clk 0:02:51]}  Nxd5 {[%clk 0:02:47]} 8. Nxd5 {[%clk 0:02:50]}  Qxd5 {[%clk 0:02:47]} 9. Qxd5 {[%clk 0:02:49]}  cxd5 {[%clk 0:02:48]} 10. Bb5+ {[%clk 0:02:46]}  Bd7 {[%clk 0:02:48]} 11. Bxd7+ {[%clk 0:02:45]}  Kxd7 {[%clk 0:02:49]} 12. O-O {[%clk 0:02:46]}  c6 {[%clk 0:02:48]} 13. Rd1 {[%clk 0:02:46]}  Kc7 {[%clk 0:02:41]} 14. Bf4+ {[%clk 0:02:44]}  Bd6 {[%clk 0:02:42]} 15. Bxd6+ {[%clk 0:02:44]}  Kxd6 {[%clk 0:02:43]} 16. c4 {[%clk 0:02:41]}  Rhe8 {[%clk 0:02:43]} 17. cxd5 {[%clk 0:02:42]}  cxd5 {[%clk 0:02:44]} 18. Rd2 {[%clk 0:02:38]}  Re5 {[%clk 0:02:43]} 19. Rad1 {[%clk 0:02:38]}  Rae8 {[%clk 0:02:44]} 20. Kf1 {[%clk 0:02:38]}  Rc8 {[%clk 0:02:43]} 21. Re2 {[%clk 0:02:25]}  f6 {[%clk 0:02:39]} 22. f4 {[%clk 0:02:23]}  Rf5 {[%clk 0:02:35]} 23. Rf2 {[%clk 0:02:14]}  Rc4 {[%clk 0:02:34]} 24. g3 {[%clk 0:02:15]}  g5 {[%clk 0:02:32]} 25. fxg5 {[%clk 0:02:11]}  Rxf2+ {[%clk 0:02:33]} 26. Kxf2 {[%clk 0:02:11]}  Rc2+ {[%clk 0:02:32]} 27. Ke3 {[%clk 0:02:09]}  fxg5 {[%clk 0:01:57]} 28. Rd2 {[%clk 0:02:08]}  Rc1 {[%clk 0:01:57]} 29. Rf2 {[%clk 0:02:07]}  Ke6 {[%clk 0:01:55]} 30. Kd4 {[%clk 0:02:04]}  Rd1+ {[%clk 0:01:54]} 31. Kc5 {[%clk 0:02:02]}  d4 {[%clk 0:01:44]} 32. Kc4 {[%clk 0:01:58]}  Ke5 {[%clk 0:01:44]} 33. Re2+ {[%clk 0:01:57]}  Kf5 {[%clk 0:01:44]} 34. b4 {[%clk 0:01:48]}  Kg4 {[%clk 0:01:19]} 35. h4 {[%clk 0:01:06]}  Kf3 {[%clk 0:01:15]} 36. Re7 {[%clk 0:00:53]}  g4 {[%clk 0:01:15]} 37. Rxh7 {[%clk 0:00:48]}  Kxg3 {[%clk 0:01:15]} 38. Rxa7 {[%clk 0:00:48]}  Kxh4 {[%clk 0:00:51]} 39. b5 {[%clk 0:00:48]}  g3 {[%clk 0:00:40]} 40. a4 {[%clk 0:00:30]}  d3 {[%clk 0:00:30]} 41. b6 {[%clk 0:00:25]}  Rb1 {[%clk 0:00:07]} 42. a5 {[%clk 0:00:08]}  d2 {[%clk 0:00:07]} 43. Rd7 {[%clk 0:00:08]}  d1=Q {[%clk 0:00:07]} 44. Rxd1 {[%clk 0:00:09]}  Rxd1 {[%clk 0:00:08]} 45. b7 {[%clk 0:00:09]}  Rb1 {[%clk 0:00:08]} 46. a6 {[%clk 0:00:09]}  g2 {[%clk 0:00:08]} 47. a7 {[%clk 0:00:10]}  g1=Q {[%clk 0:00:07]} 48. a8=Q {[%clk 0:00:09]}  Qc1+ {[%clk 0:00:06]} 49. Kd5 {[%clk 0:00:09]}  Qd2+ {[%clk 0:00:05]} 50. Kc6 {[%clk 0:00:09]}  Rc1+ {[%clk 0:00:05]} 51. Kb6 {[%clk 0:00:09]}  Qb2+ {[%clk 0:00:05]} 52. Ka7 {[%clk 0:00:09]}  Ra1+ {[%clk 0:00:05]} 53. Kb8 {[%clk 0:00:10]}  Qh8+ {[%clk 0:00:05]} 54. Kc7 {[%clk 0:00:10]}  Rxa8 {[%clk 0:00:06]} 55. bxa8=Q {[%clk 0:00:10]}  Qxa8 {[%clk 0:00:06]} 0-1


[Site "https://www.chess.com"]

[Event "Titled Tuesday Blitz December 06 Early 2022"]
[White "Miszler, Levente"]
[Black "Putnam, Liam"]
[WhiteFideId "763276"]
[BlackFideId "30938279"]
[WhiteElo "2176"]
[BlackElo "2082"]
[Result "0-1"]
[Round "02"]
[TimeControl "180+1"]
[Date "2022.12.07"]
[WhiteClock "0:00:20"]
[BlackClock "0:00:06"]

1. Nf3 {[%clk 0:03:00]}  d5 {[%clk 0:02:59]} 2. c4 {[%clk 0:02:59]}  d4 {[%clk 0:02:59]} 3. e3 {[%clk 0:02:59]}  Nc6 {[%clk 0:02:59]} 4. exd4 {[%clk 0:02:59]}  Nxd4 {[%clk 0:03:00]} 5. Nxd4 {[%clk 0:02:58]}  Qxd4 {[%clk 0:03:01]} 6. Nc3 {[%clk 0:02:59]}  e5 {[%clk 0:03:00]} 7. d3 {[%clk 0:02:54]}  Nf6 {[%clk 0:02:56]} 8. Be3 {[%clk 0:02:54]}  Qd8 {[%clk 0:02:56]} 9. d4 {[%clk 0:02:51]}  e4 {[%clk 0:02:38]} 10. Qd2 {[%clk 0:02:48]}  Bb4 {[%clk 0:02:36]} 11. a3 {[%clk 0:02:48]}  Bd6 {[%clk 0:02:32]} 12. c5 {[%clk 0:02:40]}  Be7 {[%clk 0:02:27]} 13. d5 {[%clk 0:02:40]}  Bg4 {[%clk 0:02:19]} 14. Bc4 {[%clk 0:02:36]}  O-O {[%clk 0:02:17]} 15. h3 {[%clk 0:02:36]}  Bh5 {[%clk 0:02:14]} 16. O-O {[%clk 0:02:36]}  Re8 {[%clk 0:02:09]} 17. Rfe1 {[%clk 0:02:34]}  Bg6 {[%clk 0:01:57]} 18. b4 {[%clk 0:02:33]}  Nd7 {[%clk 0:01:56]} 19. Bf4 {[%clk 0:02:28]}  Bf6 {[%clk 0:01:53]} 20. Rac1 {[%clk 0:02:25]}  a5 {[%clk 0:01:42]} 21. Bb5 {[%clk 0:02:12]}  axb4 {[%clk 0:01:40]} 22. axb4 {[%clk 0:02:13]}  Ra3 {[%clk 0:01:36]} 23. d6 {[%clk 0:02:00]}  c6 {[%clk 0:01:33]} 24. Bc4 {[%clk 0:01:54]}  b5 {[%clk 0:01:13]} 25. Nxb5 {[%clk 0:01:48]}  cxb5 {[%clk 0:01:11]} 26. Bxb5 {[%clk 0:01:49]}  Rf8 {[%clk 0:00:43]} 27. Bxd7 {[%clk 0:01:48]}  Qxd7 {[%clk 0:00:43]} 28. c6 {[%clk 0:01:48]}  Qa7 {[%clk 0:00:28]} 29. c7 {[%clk 0:01:35]}  Bf5 {[%clk 0:00:22]} 30. d7 {[%clk 0:01:32]}  Rd3 {[%clk 0:00:20]} 31. Qxd3 {[%clk 0:01:21]}  exd3 {[%clk 0:00:21]} 32. c8=Q {[%clk 0:01:21]}  Qxd7 {[%clk 0:00:12]} 33. Qxd7 {[%clk 0:01:17]}  Bxd7 {[%clk 0:00:13]} 34. Red1 {[%clk 0:01:02]}  Bf5 {[%clk 0:00:10]} 35. g4 {[%clk 0:01:02]}  Be4 {[%clk 0:00:09]} 36. Bd6 {[%clk 0:00:57]}  Rd8 {[%clk 0:00:09]} 37. Bc5 {[%clk 0:00:55]}  h6 {[%clk 0:00:09]} 38. b5 {[%clk 0:00:53]}  d2 {[%clk 0:00:09]} 39. Rc4 {[%clk 0:00:23]}  Bf3 {[%clk 0:00:08]} 40. Bb6 {[%clk 0:00:24]}  Bxd1 {[%clk 0:00:06]} 41. Bxd8 {[%clk 0:00:23]}  Be2 {[%clk 0:00:05]} 42. Bxf6 {[%clk 0:00:19]}  d1=Q+ {[%clk 0:00:06]} 43. Kh2 {[%clk 0:00:20]}  Bxc4 {[%clk 0:00:06]} 0-1


[Site "https://www.chess.com"]

[Event "Titled Tuesday Blitz December 06 Early 2022"]
[White "Moskvin, Anatoly"]
[Black "Rakhmatullaev, Almas"]
[WhiteFideId "24199990"]
[BlackFideId "14205793"]
[WhiteElo "2104"]
[BlackElo "2221"]
[Result "1-0"]
[Round "02"]
[TimeControl "180+1"]
[Date "2022.12.07"]
[WhiteClock "0:00:18"]
[BlackClock "0:00:05"]

1. e4 {[%clk 0:03:00]}  e5 {[%clk 0:02:58]} 2. Nf3 {[%clk 0:03:01]}  Nf6 {[%clk 0:02:59]} 3. d4 {[%clk 0:03:01]}  Nxe4 {[%clk 0:02:58]} 4. Bd3 {[%clk 0:03:01]}  d5 {[%clk 0:02:57]} 5. dxe5 {[%clk 0:03:02]}  Nc5 {[%clk 0:02:55]} 6. O-O {[%clk 0:03:02]}  Be7 {[%clk 0:02:48]} 7. Nc3 {[%clk 0:03:02]}  c6 {[%clk 0:02:41]} 8. h3 {[%clk 0:03:00]}  h6 {[%clk 0:02:36]} 9. Nd4 {[%clk 0:03:00]}  Nbd7 {[%clk 0:02:29]} 10. f4 {[%clk 0:02:44]}  Nxd3 {[%clk 0:02:27]} 11. Qxd3 {[%clk 0:02:45]}  Nc5 {[%clk 0:02:26]} 12. Qg3 {[%clk 0:02:46]}  Rg8 {[%clk 0:02:09]} 13. Be3 {[%clk 0:02:35]}  Ne6 {[%clk 0:01:56]} 14. Nxe6 {[%clk 0:01:54]}  Bxe6 {[%clk 0:01:29]} 15. f5 {[%clk 0:01:49]}  Bc8 {[%clk 0:01:24]} 16. Rad1 {[%clk 0:01:40]}  Bg5 {[%clk 0:01:18]} 17. Bc5 {[%clk 0:01:14]}  Be7 {[%clk 0:01:10]} 18. Bxe7 {[%clk 0:00:38]}  Qxe7 {[%clk 0:01:11]} 19. Kh1 {[%clk 0:00:30]}  g6 {[%clk 0:00:56]} 20. Rxd5 {[%clk 0:00:19]}  cxd5 {[%clk 0:00:22]} 21. Nxd5 {[%clk 0:00:20]}  Qg5 {[%clk 0:00:19]} 22. Nf6+ {[%clk 0:00:19]}  Ke7 {[%clk 0:00:11]} 23. Qa3+ {[%clk 0:00:17]}  Kd8 {[%clk 0:00:07]} 24. Qd6+ {[%clk 0:00:18]}  Bd7 {[%clk 0:00:05]} 25. Qxd7# {[%clk 0:00:18]} 1-0


[Site "https://www.chess.com"]

[Event "Titled Tuesday Blitz December 06 Early 2022"]
[White "Nepo"]
[Black "Garv Gaur"]
[BlackFideId "45030839"]
[WhiteElo "2230"]
[BlackElo "2056"]
[Result "0-1"]
[Round "02"]
[TimeControl "180+1"]
[Date "2022.12.07"]
[WhiteClock "0:00:13"]
[BlackClock "0:01:22"]

1. e4 {[%clk 0:02:40]}  g6 {[%clk 0:02:53]} 2. d4 {[%clk 0:02:38]}  d6 {[%clk 0:02:53]} 3. Nc3 {[%clk 0:02:36]}  Bg7 {[%clk 0:02:53]} 4. Be3 {[%clk 0:02:36]}  Nd7 {[%clk 0:02:54]} 5. Qd2 {[%clk 0:02:36]}  e5 {[%clk 0:02:54]} 6. Bc4 {[%clk 0:02:34]}  Ne7 {[%clk 0:02:52]} 7. Nge2 {[%clk 0:02:32]}  a6 {[%clk 0:02:50]} 8. a4 {[%clk 0:02:31]}  f5 {[%clk 0:02:34]} 9. Bh6 {[%clk 0:02:27]}  Bf6 {[%clk 0:02:31]} 10. O-O {[%clk 0:02:13]}  exd4 {[%clk 0:02:03]} 11. Nxd4 {[%clk 0:02:12]}  Ne5 {[%clk 0:02:03]} 12. Bb3 {[%clk 0:02:06]}  Ng4 {[%clk 0:02:02]} 13. exf5 {[%clk 0:02:01]}  Nxh6 {[%clk 0:01:57]} 14. Qxh6 {[%clk 0:01:52]}  Bxd4 {[%clk 0:01:57]} 15. fxg6 {[%clk 0:01:52]}  hxg6 {[%clk 0:01:56]} 16. Qf4 {[%clk 0:01:48]}  Nf5 {[%clk 0:01:51]} 17. Rae1+ {[%clk 0:01:38]}  Kf8 {[%clk 0:01:38]} 18. Nd5 {[%clk 0:00:18]}  Be5 {[%clk 0:01:34]} 19. Rxe5 {[%clk 0:00:16]}  dxe5 {[%clk 0:01:35]} 20. Qxe5 {[%clk 0:00:17]}  Rh7 {[%clk 0:01:31]} 21. g4 {[%clk 0:00:15]}  Qd6 {[%clk 0:01:26]} 22. f4 {[%clk 0:00:13]}  Qc5+ {[%clk 0:01:22]} 23. Kh1 {[%clk 0:00:13]}  Ng3+ {[%clk 0:01:22]} 0-1


[Site "https://www.chess.com"]

[Event "Titled Tuesday Blitz December 06 Early 2022"]
[White "Papp, Levente"]
[Black "Grandelius, Nils"]
[WhiteFideId "751243"]
[BlackFideId "1710400"]
[WhiteElo "2380"]
[BlackElo "2617"]
[Result "0-1"]
[Round "02"]
[TimeControl "180+1"]
[Date "2022.12.06"]
[WhiteClock "0:00:01"]
[BlackClock "0:01:30"]

1. Nf3 {[%clk 0:03:00]}  f5 {[%clk 0:02:57]} 2. g3 {[%clk 0:02:58]}  Nf6 {[%clk 0:02:55]} 3. Bg2 {[%clk 0:02:58]}  d6 {[%clk 0:02:56]} 4. O-O {[%clk 0:02:56]}  e5 {[%clk 0:02:56]} 5. d3 {[%clk 0:02:55]}  Be7 {[%clk 0:02:56]} 6. e4 {[%clk 0:02:48]}  O-O {[%clk 0:02:55]} 7. exf5 {[%clk 0:02:43]}  Bxf5 {[%clk 0:02:53]} 8. Nc3 {[%clk 0:02:28]}  c5 {[%clk 0:02:44]} 9. Ng5 {[%clk 0:02:21]}  Nc6 {[%clk 0:02:41]} 10. Nd5 {[%clk 0:02:18]}  Kh8 {[%clk 0:02:36]} 11. Nxe7 {[%clk 0:02:04]}  Qxe7 {[%clk 0:02:37]} 12. Ne4 {[%clk 0:01:54]}  Qd7 {[%clk 0:02:27]} 13. Nxf6 {[%clk 0:01:36]}  Rxf6 {[%clk 0:02:27]} 14. f4 {[%clk 0:01:23]}  Bg4 {[%clk 0:02:21]} 15. Bf3 {[%clk 0:01:08]}  Bxf3 {[%clk 0:02:20]} 16. Qxf3 {[%clk 0:01:08]}  Raf8 {[%clk 0:02:19]} 17. Qg2 {[%clk 0:01:04]}  g5 {[%clk 0:02:12]} 18. f5 {[%clk 0:00:43]}  Rxf5 {[%clk 0:02:10]} 19. Be3 {[%clk 0:00:43]}  g4 {[%clk 0:02:04]} 20. Bh6 {[%clk 0:00:32]}  R8f6 {[%clk 0:01:59]} 21. Bg5 {[%clk 0:00:32]}  Rf7 {[%clk 0:01:53]} 22. Rxf5 {[%clk 0:00:26]}  Qxf5 {[%clk 0:01:52]} 23. Rf1 {[%clk 0:00:16]}  Qxf1+ {[%clk 0:01:49]} 24. Qxf1 {[%clk 0:00:17]}  Rxf1+ {[%clk 0:01:49]} 25. Kxf1 {[%clk 0:00:18]}  Kg7 {[%clk 0:01:49]} 26. c3 {[%clk 0:00:16]}  Kg6 {[%clk 0:01:50]} 27. Be3 {[%clk 0:00:15]}  Kf5 {[%clk 0:01:50]} 28. Ke2 {[%clk 0:00:13]}  Ne7 {[%clk 0:01:48]} 29. b4 {[%clk 0:00:10]}  cxb4 {[%clk 0:01:41]} 30. cxb4 {[%clk 0:00:11]}  a6 {[%clk 0:01:41]} 31. Bd2 {[%clk 0:00:04]}  Nd5 {[%clk 0:01:42]} 32. Be1 {[%clk 0:00:02]}  h5 {[%clk 0:01:38]} 33. Bd2 {[%clk 0:00:02]}  b5 {[%clk 0:01:33]} 34. Be1 {[%clk 0:00:02]}  e4 {[%clk 0:01:34]} 35. d4 {[%clk 0:00:01]}  Nb6 {[%clk 0:01:30]} 0-1


[Site "https://www.chess.com"]

[Event "Titled Tuesday Blitz December 06 Early 2022"]
[White "Paravyan, David"]
[Black "Czopor, Maciej"]
[WhiteFideId "4194985"]
[BlackFideId "21805431"]
[WhiteElo "2551"]
[BlackElo "2324"]
[Result "1-0"]
[Round "02"]
[TimeControl "180+1"]
[Date "2022.12.06"]
[WhiteClock "0:01:47"]
[BlackClock "0:01:21"]

1. e4 {[%clk 0:03:00]}  g6 {[%clk 0:02:56]} 2. d4 {[%clk 0:02:59]}  Bg7 {[%clk 0:02:52]} 3. Nf3 {[%clk 0:03:00]}  c6 {[%clk 0:02:52]} 4. h3 {[%clk 0:02:52]}  d5 {[%clk 0:02:52]} 5. e5 {[%clk 0:02:52]}  f6 {[%clk 0:02:52]} 6. Bf4 {[%clk 0:02:43]}  Nh6 {[%clk 0:02:52]} 7. exf6 {[%clk 0:02:42]}  exf6 {[%clk 0:02:52]} 8. Bd3 {[%clk 0:02:42]}  Nf7 {[%clk 0:02:51]} 9. O-O {[%clk 0:02:41]}  O-O {[%clk 0:02:51]} 10. Re1 {[%clk 0:02:42]}  Nd6 {[%clk 0:02:49]} 11. Nbd2 {[%clk 0:02:41]}  b6 {[%clk 0:02:45]} 12. Rc1 {[%clk 0:02:37]}  Na6 {[%clk 0:02:42]} 13. a3 {[%clk 0:02:32]}  Nc7 {[%clk 0:02:41]} 14. c4 {[%clk 0:02:32]}  dxc4 {[%clk 0:02:24]} 15. Nxc4 {[%clk 0:02:33]}  Nxc4 {[%clk 0:02:23]} 16. Bxc7 {[%clk 0:02:28]}  Qxc7 {[%clk 0:02:22]} 17. Bxc4+ {[%clk 0:02:28]}  Kh8 {[%clk 0:02:22]} 18. Bd5 {[%clk 0:02:24]}  Bb7 {[%clk 0:02:19]} 19. Bxc6 {[%clk 0:02:24]}  Bh6 {[%clk 0:01:41]} 20. Bxb7 {[%clk 0:02:17]}  Qxb7 {[%clk 0:01:40]} 21. Rc2 {[%clk 0:02:15]}  Rad8 {[%clk 0:01:34]} 22. Rce2 {[%clk 0:02:13]}  Rd7 {[%clk 0:01:32]} 23. Qb3 {[%clk 0:02:10]}  Rfd8 {[%clk 0:01:20]} 24. Re8+ {[%clk 0:02:09]}  Bf8 {[%clk 0:01:21]} 25. Qb4 {[%clk 0:01:47]} 1-0


[Site "https://www.chess.com"]

[Event "Titled Tuesday Blitz December 06 Early 2022"]
[White "Piesik, Piotr"]
[Black "Kuchava, Ana"]
[WhiteFideId "1136194"]
[BlackFideId "13605348"]
[WhiteElo "2316"]
[BlackElo "2001"]
[Result "1-0"]
[Round "02"]
[TimeControl "180+1"]
[Date "2022.12.07"]
[WhiteClock "0:01:54"]
[BlackClock "0:00:37"]

1. Nf3 {[%clk 0:02:52]}  d5 {[%clk 0:02:59]} 2. g3 {[%clk 0:02:52]}  Nf6 {[%clk 0:02:59]} 3. Bg2 {[%clk 0:02:52]}  c5 {[%clk 0:02:59]} 4. O-O {[%clk 0:02:53]}  Nc6 {[%clk 0:02:59]} 5. d3 {[%clk 0:02:54]}  e5 {[%clk 0:02:52]} 6. Nbd2 {[%clk 0:02:54]}  Bd6 {[%clk 0:02:49]} 7. e4 {[%clk 0:02:54]}  d4 {[%clk 0:02:47]} 8. Nc4 {[%clk 0:02:54]}  O-O {[%clk 0:02:47]} 9. Nxd6 {[%clk 0:02:53]}  Qxd6 {[%clk 0:02:46]} 10. Nd2 {[%clk 0:02:53]}  Bd7 {[%clk 0:02:20]} 11. f4 {[%clk 0:02:52]}  Ng4 {[%clk 0:02:13]} 12. Nc4 {[%clk 0:02:50]}  Qc7 {[%clk 0:02:07]} 13. h3 {[%clk 0:02:36]}  b5 {[%clk 0:01:52]} 14. hxg4 {[%clk 0:02:32]}  bxc4 {[%clk 0:01:51]} 15. dxc4 {[%clk 0:02:33]}  f6 {[%clk 0:01:24]} 16. g5 {[%clk 0:02:29]}  Rad8 {[%clk 0:01:19]} 17. gxf6 {[%clk 0:02:25]}  Rxf6 {[%clk 0:01:17]} 18. f5 {[%clk 0:02:25]}  h6 {[%clk 0:01:15]} 19. g4 {[%clk 0:02:16]}  Rff8 {[%clk 0:01:11]} 20. g5 {[%clk 0:02:16]}  hxg5 {[%clk 0:01:12]} 21. Bxg5 {[%clk 0:02:16]}  Rde8 {[%clk 0:01:13]} 22. Qh5 {[%clk 0:02:10]}  Bc8 {[%clk 0:01:08]} 23. Rf2 {[%clk 0:02:05]}  Qf7 {[%clk 0:01:07]} 24. Qxf7+ {[%clk 0:02:02]}  Rxf7 {[%clk 0:01:05]} 25. Bf3 {[%clk 0:02:03]}  a5 {[%clk 0:00:52]} 26. Bh5 {[%clk 0:02:02]}  a4 {[%clk 0:00:44]} 27. f6 {[%clk 0:01:55]}  gxf6 {[%clk 0:00:37]} 28. Bxf7+ {[%clk 0:01:54]}  Kxf7 {[%clk 0:00:37]} 29. Rxf6+ {[%clk 0:01:54]} 1-0


[Site "https://www.chess.com"]